fUSD/lending_fUSD_20250828
["ID","MTS","AMOUNT","RATE_DAILY","PERIOD"]
[381922971,1756410639134,-150.0,0.00024276,4]
[381922973,1756410639144,-150.0,0.00024278,4]
[381922975,1756410639154,-150.0,0.00024278,4]
[381922977,1756410639164,-150.0,0.00024286,4]
[381922979,1756410639174,-154.7634189,0.00024294,4]
[381922981,1756410639183,-38660.26,0.000243,7]
[381922983,1756410639193,-950.0,0.00024301,2]
[381922985,1756410639203,-721.0,0.00024301,2]
[381922987,1756410639214,-150.0,0.00024318,4]
[381922989,1756410639224,-154.7634189,0.00024319,4]
[381922991,1756410639234,-150.0,0.0002433,4]
[381922993,1756410639243,-150.0,0.00024333,4]
[381922995,1756410639252,-154.7634189,0.00024344,4]
[381922997,1756410639262,-150.0,0.00024344,4]
[381922999,1756410639272,-150.0,0.00024349,4]
[381923001,1756410639281,-600.0,0.00024356,2]
[381923003,1756410639292,-154.7634189,0.00024369,4]
[381923005,1756410639301,-150.0,0.00024381,4]
[381923007,1756410639311,-150.0,0.00024381,4]
[381923009,1756410639320,-150.0,0.00024381,4]
[381923011,1756410639329,-150.0,0.00024381,4]
[381923013,1756410639339,-150.0,0.00024391,4]
[381923015,1756410639348,-154.7634189,0.00024394,4]
[381923017,1756410639358,-150.0,0.00024413,4]
[381923019,1756410639367,-150.0,0.00024413,4]
[381923021,1756410639376,-154.7634189,0.00024419,4]
[381923023,1756410639385,-150.0,0.00024419,4]
[381923025,1756410639395,-150.0,0.00024433,4]
[381923027,1756410639404,-154.7634189,0.00024444,4]
[381923029,1756410639414,-150.0,0.00024449,4]
[381923032,1756410639425,-154.7634189,0.00024469,4]
[381923033,1756410639435,-150.0,0.00024477,4]
[381923035,1756410639444,-150.0,0.00024485,4]
[381923038,1756410639454,-150.0,0.00024485,4]
[381923040,1756410639463,-150.0,0.00024485,4]
[381923042,1756410639473,-154.7634189,0.00024494,4]
[381923044,1756410639483,-150.0,0.00024494,4]
[381923046,1756410639492,-150.0,0.00024506,4]
[381923048,1756410639502,-150.0,0.00024508,4]
[381923050,1756410639514,-200.0,0.0002451,7]
[381923052,1756410639524,-154.7634189,0.00024519,4]
[381923054,1756410639534,-150.0,0.00024519,4]
[381923056,1756410639543,-150.0,0.00024536,4]
[381923058,1756410639553,-150.0,0.0002454,4]
[381923060,1756410639563,-154.7634189,0.00024544,4]
[381923062,1756410639572,-150.0,0.00024564,4]
[381923064,1756410639581,-17225.18743222,0.00024567,2]
[381923066,1756410639591,-154.7634189,0.00024569,4]
[381923068,1756410639601,-150.0,0.00024569,4]
[381923071,1756410639610,-150.0,0.00024588,4]
[381923073,1756410639619,-150.0,0.00024588,4]
[381923075,1756410639629,-154.7634189,0.00024594,4]
[381923077,1756410639641,-150.0,0.00024604,4]
[381923079,1756410639651,-150.0,0.00024604,4]
[381923082,1756410639660,-339.29,0.00024616,2]
[381923085,1756410639670,-154.7634189,0.00024619,4]
[381923087,1756410639679,-150.0,0.00024622,4]
[381923089,1756410639690,-150.0,0.0002464,4]
[381923091,1756410639700,-154.7634189,0.00024644,4]
[381923093,1756410639710,-150.0,0.00024644,4]
[381923095,1756410639719,-584.81953695,0.0002465,2]
[381923097,1756410639728,-163.67174789,0.0002465,2]
[381923099,1756410639739,-150.0,0.00024657,4]
[381923101,1756410639749,-1416.73,0.00024657,4]
[381923103,1756410639759,-1000.0,0.00024658,2]
[381923105,1756410639769,-500.0,0.00024658,2]
[381923107,1756410639779,-332.60791905,0.00024663,2]
[381923109,1756410639788,-150.0,0.00024667,4]
[381923111,1756410639797,-154.7634189,0.00024669,4]
[381923113,1756410639807,-150.0,0.00024679,4]
[381923115,1756410639816,-150.0,0.00024691,4]
[381923117,1756410639825,-150.0,0.00024691,4]
[381923119,1756410639835,-154.7634189,0.00024694,4]
[381923121,1756410639845,-150.0,0.00024699,4]
[381923123,1756410639859,-154.7634189,0.00024719,4]
[381923125,1756410639869,-150.0,0.00024719,4]
[381923127,1756410639879,-150.0,0.00024731,4]
[381923129,1756410639889,-156.36879723,0.00024734,2]
[381923131,1756410639899,-1166.50293363,0.00024734,2]
[381923134,1756410639908,-150.0,0.00024737,4]
[381923136,1756410639919,-150.0,0.00024743,4]
[381923138,1756410639928,-154.7634189,0.00024744,4]
[381923140,1756410639938,-154.7634189,0.00024769,4]
[381923142,1756410639948,-154.7634189,0.00024795,4]
[381923144,1756410639957,-153.86505337,0.00024795,4]
[381923146,1756410639967,-165.63728934,0.00024795,4]
[381923148,1756410639979,-283.79312153,0.00024795,4]
[381923150,1756410639988,-240.70890421,0.00024795,4]
[381923152,1756410639997,-185.21078341,0.00024795,4]
[381923154,1756410640006,-160.99768388,0.00024795,4]
[381923156,1756410640016,-267.58350463,0.00024795,4]
[381923158,1756410640026,-183.87251955,0.00024795,4]
[381923160,1756410640036,-274.82382284,0.00024795,4]
[381923162,1756410640046,-212.9492478,0.00024795,4]
[381923164,1756410640057,-159.61559463,0.00024795,4]
[381923166,1756410640067,-271.66411194,0.00024795,4]
[381923168,1756410640077,-150.0,0.00024795,4]
[381923170,1756410640086,-150.0,0.00024799,2]
[381923172,1756410640096,-3741.57,0.000248,2]
[381923174,1756410640105,-274554.83624702,0.000248,3]
[381923195,1756410640287,-1277.10219932,0.000248,3]
[381923197,1756410640298,-411.75610827,0.000248,3]
[381923242,1756410640709,-151.0,0.00018,2]
[381923245,1756410640721,-500.0,0.00018,2]
[381923247,1756410640731,-151.0,0.00018,2]
[381923249,1756410640740,-321.7,0.00018274,2]
[381923251,1756410640752,-221.62979931,0.00018274,2]
[381923253,1756410640761,-151.0,0.0001886,2]
[381923255,1756410640772,-150.0,0.00021918,2]
[381923257,1756410640781,-150.0,0.00021918,2]
[381923259,1756410640790,-150.0,0.00022192,2]
[381923261,1756410640800,-200.79285293,0.00022466,2]
[381923263,1756410640809,-29341.53677294,0.000248,3]
[381923265,1756410640820,-7607.94435701,0.000248,3]
[381923267,1756410640831,-294.75802627,0.000248,3]
[381923270,1756410640842,-2171.13502962,0.000248,3]
[381923272,1756410640856,-8880.91630274,0.000248,3]
[381923277,1756410640898,-605.975,0.000248,3]
[381923279,1756410640908,-979.3688278,0.000248,3]
[381923282,1756410640923,-27213.20788724,0.000248,3]
[381923284,1756410640934,-8356.848715,0.000248,3]
[381923285,1756410640946,-15822.50039355,0.000248,3]
[381923286,1756410640957,-546.35149615,0.000248,3]
[381923361,1756410642749,-1376.2007397,0.000248,3]
[381923362,1756410642760,-4652.02786434,0.000248,3]
[381923364,1756410642801,-2359.0988197,0.000248,3]
[381923365,1756410642859,-1104.47952047,0.000248,3]
[381923366,1756410642915,-1000.0,0.000248,3]
[381923367,1756410642970,-1699.75871931,0.000248,3]
[381923368,1756410643029,-37790.4520145,0.000248,3]
[381923382,1756410645953,-776.26541492,0.000248,3]
[381923383,1756410646113,-32773.99905912,0.000248,3]
[381923384,1756410646124,-8681.1239484,0.000248,3]
[381923385,1756410646135,-910.07126,0.000248,3]
[381923668,1756410709052,719.84071091,0.0003013,120]
[381923669,1756410711770,168.0,0.0003013,120]
[381923670,1756410912388,163.58,0.00013699,2]
[381923671,1756410912659,150.0,0.00014199,3]
[381923705,1756411831945,-152.9,0.00018076,2]
[381923706,1756411831955,-152.37,0.00018076,2]
[381923707,1756411831964,-151.32,0.00018076,2]
[381923708,1756411831973,-152.66,0.00018076,2]
[381923709,1756411831982,-152.66,0.00018076,2]
[381923710,1756411831991,-151.24,0.00018076,2]
[381923711,1756411832000,-150.89,0.00018076,2]
[381923712,1756411832009,-571.84493406,0.00018076,2]
[381923713,1756411832024,-434.04660037,0.00018076,2]
[381923714,1756411832035,-1643.82885487,0.00018076,2]
[381923715,1756411832053,-578.1981307,0.00018076,2]
[381923716,1756411832064,-53.97284464,0.00018076,2]
[381923717,1756411832073,-150.49,0.00018176,2]
[381923718,1756411832082,-152.77,0.00018176,2]
[381923719,1756411832091,-277.35679052,0.00018176,2]
[381923720,1756411832100,-148.20751989,0.000184,2]
[381923721,1756411832111,-151.79248011,0.000184,2]
[381923722,1756411832120,-3281.89136463,0.00018401,2]
[381923723,1756411832129,-300.0,0.00018725,2]
[381923724,1756411832138,-3281.89136463,0.00018726,2]
[381923725,1756411832147,-159.6,0.00018826,2]
[381923726,1756411832156,-151.0,0.00019221,2]
[381923727,1756411832165,-416.06229644,0.00019306,2]
[381923728,1756411832174,-287.61899177,0.00019545,2]
[381923729,1756411832183,-185.42,0.00019863,2]
[381923730,1756411832192,-763.0,0.00019883,2]
[381923731,1756411832201,-251.0,0.00019883,2]
[381923732,1756411832210,-420.0,0.00020068,2]
[381923733,1756411832219,-163.58,0.00020187,2]
[381923734,1756411832228,-778.0,0.000206,2]
[381923735,1756411832237,-241.0,0.000206,2]
[381923737,1756411832246,-381.0,0.000206,2]
[381923738,1756411832255,-4153.14350242,0.0002086,2]
[381923739,1756411832266,-602.45166163,0.0002086,2]
[381923740,1756411832277,-13791.31628695,0.0002086,2]
[381923741,1756411832288,-1346.70969132,0.0002086,2]
[381923742,1756411832299,-961.81621107,0.0002086,2]
[381923743,1756411836486,-4860.81238996,0.0002086,2]
[381923759,1756411837903,-778.46143605,0.0002086,2]
[381923760,1756411837915,-528.5078851,0.0002086,2]
[381923761,1756411838058,-261.52156641,0.0002086,2]
[381923762,1756411838164,-7906.18936909,0.0002086,2]
[381923763,1756411838173,-610.0,0.00020881,2]
[381923764,1756411838183,-298.26089446,0.00020914,2]
[381923765,1756411838192,-56688.48,0.00020965,2]
[381923766,1756411838201,-150.0,0.00021039,2]
[381923768,1756411838210,-875.0,0.00021142,2]
[381923769,1756411838220,-1284.69517403,0.00021143,2]
[381923770,1756411838229,-168.93,0.00021164,2]
[381923771,1756411838238,-322.6107,0.00021242,2]
[381923772,1756411838247,-151.0,0.00021242,2]
[381923773,1756411838257,-151.0,0.00021242,2]
[381923774,1756411838266,-151.0,0.00021242,2]
[381923775,1756411838275,-151.0,0.00021242,2]
[381923776,1756411838285,-151.0,0.00021242,2]
[381923777,1756411838294,-151.0,0.00021242,2]
[381923778,1756411838303,-264.01710526,0.00021242,2]
[381923779,1756411838315,-151.0,0.00021242,2]
[381923780,1756411838325,-19574.81675736,0.00021255,2]
[381923922,1756411839944,-1227.0,0.00021255,2]
[381923924,1756411839956,-477.07324264,0.00021255,2]
[381923926,1756411839967,-3649.57,0.00021296,2]
[381923928,1756411839976,-1083.76377523,0.00021343,2]
[381923930,1756411839986,-13572.19768213,0.00021344,2]
[381923932,1756411839997,-6402.46231787,0.00021344,2]
[381923934,1756411840007,-200.0,0.00021468,2]
[381923936,1756411840016,-600.0,0.00021616,2]
[381923938,1756411840026,-151.0,0.0002179,2]
[381923940,1756411840035,-2120.76,0.00021791,2]
[381923942,1756411840044,-200.0,0.00021883,2]
[381923944,1756411840053,-587.0,0.00021888,2]
[381923946,1756411840063,-5000.0,0.00021918,2]
[381923948,1756411840073,-360.06225634,0.00022024,2]
[381923950,1756411840082,-329.07,0.000221,2]
[381923952,1756411840092,-6893.98,0.00022113,2]
[381923954,1756411840101,-280.72,0.00022158,2]
[381923956,1756411840110,-600.0,0.00022164,2]
[381923958,1756411840119,-259.37750977,0.00022279,2]
[381923960,1756411840128,-309.29654756,0.00022283,2]
[381923962,1756411840137,-151.0,0.00022338,2]
[381923964,1756411840147,-8975.67,0.00022386,2]
[381923966,1756411840156,-216.82054737,0.00022466,2]
[381923968,1756411840165,-298.0,0.000225,2]
[381923970,1756411840175,-10483.43250344,0.00022543,2]
[381923972,1756411840183,-334.5472959,0.00022611,2]
[381923973,1756411840192,-15842.07,0.00022643,2]
[381923975,1756411840201,-600.0,0.00022712,2]
[381923977,1756411840210,-666.0,0.00022752,3]
[381923979,1756411840219,-185.42,0.00022938,2]
[381923981,1756411840228,-1000.0,0.00022979,2]
[381923983,1756411840238,-550.98,0.000231,2]
[381923985,1756411840247,-172.91537727,0.00023251,2]
[381923987,1756411840256,-150.68972433,0.00023251,2]
[381923989,1756411840266,-600.0,0.0002326,2]
[381923991,1756411840275,-280.72,0.00023266,2]
[381923993,1756411840284,-543.98,0.00023325,2]
[381923996,1756411840294,-41060.81803281,0.00023328,2]
[381923998,1756411840312,-19145.72227245,0.00023328,2]
[381924000,1756411840325,-4443.5,0.00023328,2]
[381924003,1756411840335,-26140.83129253,0.00023328,2]
[381924005,1756411840347,-1609.40355279,0.00023328,2]
[381924007,1756411840359,-153419.01076969,0.00023328,2]
[381924010,1756411840375,-596.6910753,0.00023328,2]
[381924012,1756411840387,-146922.45300443,0.00023328,2]
[381924014,1756411840396,-1000.0,0.00023351,2]
[381924016,1756411840406,-527.74833519,0.00023373,2]
[381924018,1756411840416,-329.07,0.00023542,2]
[381924020,1756411840425,-292.0,0.000236,2]
[381924022,1756411840435,-320.74051982,0.00023652,2]
[381924024,1756411840444,-203.58,0.00023726,2]
[381924026,1756411840453,-610.24,0.00023801,2]
[381924028,1756411840462,-600.0,0.00023808,2]
[381924030,1756411840471,-372.995,0.00023814,5]
[381924032,1756411840479,-823.0,0.00023872,2]
[381924034,1756411840489,-227.6908069,0.0002398,2]
[381924036,1756411840498,-600.0,0.00024356,2]
[381924038,1756411840507,-280.72,0.00024374,2]
[381924040,1756411840517,-880.68629776,0.00024487,2]
[381924042,1756411840526,-150.68972433,0.00024526,2]
[381924044,1756411840535,-203.58,0.00024616,2]
[381924046,1756411840543,-150.0,0.00024633,2]
[381924048,1756411840552,-1000.0,0.00024658,2]
[381924050,1756411840561,-500.0,0.00024658,2]
[381924052,1756411840571,-150.0,0.00024658,2]
[381924054,1756411840580,-213.76846305,0.00024658,2]
[381924056,1756411840589,-286.0,0.0002471,2]
[381924058,1756411840598,-150.0,0.00024727,4]
[381924060,1756411840607,-1120.5408568,0.00024776,2]
[381924062,1756411840617,-13190.8030679,0.00024776,2]
[381924064,1756411840626,-1350.8968845,0.00024787,2]
[381924066,1756411840635,-150.2,0.000248,2]
[381924068,1756411840644,-393.7183,0.000248,2]
[381924070,1756411840653,-546.2701,0.000248,2]
[381924072,1756411840662,-141177.249033,0.000248,2]
[381924074,1756411840671,-1812.7065,0.000248,2]
[381924076,1756411840679,-150.0,0.00024822,4]
[381924078,1756411840689,-1108.1046,0.00024849,10]
[381924080,1756411840698,-200.12629787,0.000249,2]
[381924082,1756411840708,-5609.74382657,0.000249,2]
[381924084,1756411840717,-600.0,0.00024904,2]
[381924086,1756411840726,-150.0,0.00024916,4]
[381924088,1756411840735,-500.0,0.00024932,2]
[381924090,1756411840744,-150.0,0.00024932,2]
[381924092,1756411840753,-23529.5415055,0.0002499,2]
[381924094,1756411840762,-16423.2412131,0.0002499,2]
[381924096,1756411840779,-203.00032723,0.00025,2]
[381924098,1756411840788,-1745.90564343,0.00025,2]
[381924100,1756411840797,-4690.18603274,0.00025,2]
[381924102,1756411840807,-282.04631575,0.00025,2]
[381924104,1756411840816,-360.0,0.00025,2]
[381924106,1756411840825,-2977.42087705,0.00025,2]
[381924108,1756411840834,-3163.43187512,0.00025,2]
[381924110,1756411840844,-15006.67969038,0.00025,2]
[381924112,1756411840853,-1041.03847333,0.00025,2]
[381924114,1756411840861,-163.62771417,0.00025,2]
[381924116,1756411840870,-16423.2412131,0.00025,2]
[381924118,1756411840879,-180.17552958,0.00025001,2]
[381924120,1756411840889,-14452.08697912,0.0002501,2]
[381924122,1756411840898,-150.0,0.0002501,4]
[381924124,1756411840907,-332.60791905,0.00025021,2]
[381924126,1756411840916,-329.07,0.00025085,7]
[381924128,1756411840925,-200.0,0.000251,7]
[381924130,1756411840935,-150.0,0.00025105,4]
[381924132,1756411840944,-150.01,0.00025171,2]
[381924134,1756411840953,-150.0,0.00025199,4]
[381924136,1756411840962,-311.0,0.00025206,2]
[381924156,1756411841134,-150.0,0.00025206,2]
[381924158,1756411841145,-10483.4325034,0.00025233,2]
[381924160,1756411841155,-150.75544188,0.00025274,2]
[381924162,1756411841164,-150.0,0.00025274,2]
[381924164,1756411841174,-152.42575936,0.00025274,2]
[381924166,1756411841183,-150.0,0.00025274,2]
[381924168,1756411841193,-150.0,0.00025274,2]
[381924170,1756411841202,-150.0,0.00025274,2]
[381924172,1756411841212,-150.0,0.00025274,2]
[381924174,1756411841221,-150.0,0.00025274,2]
[381924176,1756411841231,-150.0,0.00025274,2]
[381924178,1756411841240,-150.0,0.00025274,2]
[381924180,1756411841250,-150.0,0.00025274,2]
[381924181,1756411841259,-150.0,0.00025274,2]
[381924183,1756411841270,-150.0,0.00025274,2]
[381924186,1756411841280,-150.0,0.00025274,2]
[381924188,1756411841289,-150.0,0.00025274,2]
[381924189,1756411841298,-150.0,0.00025294,4]
[381924192,1756411841308,-150.0,0.0002533,4]
[381924193,1756411841321,-150.0,0.00025371,4]
[381924195,1756411841330,-150.0,0.00025386,4]
[381924197,1756411841340,-150.0,0.00025388,4]
[381924200,1756411841350,-150.0,0.00025442,4]
[381924202,1756411841360,-600.0,0.00025452,2]
[381924204,1756411841369,-150.0,0.00025461,4]
[381924206,1756411841379,-150.0,0.00025461,4]
[381924208,1756411841390,-150.0,0.00025468,4]
[381924210,1756411841399,-176.0,0.0002548,2]
[381924212,1756411841408,-280.72,0.00025481,2]
[381924214,1756411841418,-150.0,0.00025482,4]
[381924216,1756411841430,-150.0,0.00025499,4]
[381924217,1756411841439,-203.58,0.00025505,2]
[381924219,1756411841448,-23529.5415055,0.00025523,2]
[381924221,1756411841458,-150.0,0.00025529,4]
[381924223,1756411841467,-150.0,0.00025555,4]
[381924226,1756411841477,-150.0,0.00025555,4]
[381924227,1756411841486,-150.0,0.00025564,4]
[381924230,1756411841495,-150.0,0.00025577,4]
[381924232,1756411841505,-150.0,0.00025611,4]
[381924233,1756411841515,-150.0,0.00025625,4]
[381924235,1756411841524,-150.0,0.00025648,4]
[381924238,1756411841534,-150.0,0.00025648,4]
[381924239,1756411841544,-150.0,0.00025661,4]
[381924241,1756411841554,-150.0,0.00025667,4]
[381924243,1756411841563,-150.0,0.00025671,4]
[381924245,1756411841573,-150.0,0.00025723,4]
[381924247,1756411841582,-150.0,0.00025742,4]
[381924249,1756411841591,-150.0,0.00025742,4]
[381924251,1756411841600,-16423.2412131,0.00025752,2]
[381924253,1756411841610,-150.0,0.00025758,4]
[381924255,1756411841619,-150.0,0.00025765,4]
[381924257,1756411841630,-630.59605549,0.00025773,2]
[381924260,1756411841639,-169.40790977,0.00025773,2]
[381924261,1756411841649,-150.0,0.00025779,4]
[381924263,1756411841658,-150.0,0.00025785,4]
[381924265,1756411841667,-150.68972433,0.00025801,2]
[381924267,1756411841676,-280.0,0.0002581,2]
[381924269,1756411841685,-5000.0,0.00025835,2]
[381924271,1756411841694,-150.0,0.00025836,4]
[381924273,1756411841704,-150.0,0.00025836,4]
[381924275,1756411841714,-150.0,0.00025836,4]
[381924277,1756411841724,-150.0,0.00025836,4]
[381924279,1756411841733,-150.0,0.00025836,4]
[381924281,1756411841742,-150.0,0.00025855,4]
[381924283,1756411841751,-150.0,0.0002586,4]
[381924285,1756411841761,-150.0,0.00025892,4]
[381924287,1756411841771,-5609.74382654,0.00025897,4]
[381924289,1756411841781,-150.0,0.00025948,4]
[381924291,1756411841790,-150.0,0.00025952,4]
[381924293,1756411841799,-150.0,0.00025954,4]
[381924294,1756411841809,-23529.5415055,0.0002597,2]
[381924295,1756411841818,-16423.2412131,0.0002597,2]
[381924297,1756411841827,-150.0,0.00025976,4]
[381924299,1756411841837,-16423.2412131,0.0002599,2]
[381924301,1756411841847,-224.59,0.00026,7]
[381924303,1756411841856,-1400.85717042,0.00026,2]
[381924306,1756411841873,-424.10729223,0.00026,2]
[381924308,1756411841884,-738.512065,0.00026,2]
[381924310,1756411841896,-24436.52347235,0.00026,2]
[381924312,1756411841905,-1044.75,0.00026,2]
[381924314,1756411841915,-1053.19360931,0.00026,7]
[381924316,1756411841926,-452.14639069,0.00026,7]
[381924318,1756411841935,-600.0,0.00026,2]
[381924320,1756411841944,-59.96571813,0.00026004,4]
[381924527,1756411843873,-895.0,0.00024563,2]
[381924529,1756411843884,-453.06572,0.000248,2]
[381924531,1756411843894,-216.82054736,0.0002599,2]
[381924533,1756411843904,-90.03428187,0.00026004,4]
[381924535,1756411843914,-185.42,0.00026013,2]
[381924537,1756411843924,-150.0,0.00026023,4]
[381924539,1756411843934,-150.0,0.00026023,4]
[381924541,1756411843944,-435.55493477,0.00026037,2]
[381924544,1756411843963,-716.44506523,0.00026037,2]
[381924547,1756411843973,-150.0,0.0002604,4]
[381924549,1756411843983,-150.0,0.00026049,4]
[381924551,1756411843994,-150.0,0.00026049,4]
[381924553,1756411844004,-150.0,0.0002606,4]
[381924555,1756411844015,-150.0,0.00026116,4]
[381924557,1756411844027,-150.0,0.00026116,4]
[381924560,1756411844039,-150.0,0.00026143,4]
[381924562,1756411844049,-150.0,0.00026145,4]
[381924564,1756411844060,-150.0,0.00026173,4]
[381924566,1756411844069,-150.0,0.0002621,4]
[381924568,1756411844080,-150.0,0.0002621,4]
[381924570,1756411844090,-150.0,0.0002621,4]
[381924572,1756411844101,-150.0,0.0002621,4]
[381924575,1756411844112,-150.0,0.00026229,4]
[381924577,1756411844123,-150.0,0.00026237,4]
[381924579,1756411844135,-150.0,0.00026242,4]
[381924581,1756411844146,-1000.0,0.0002627,2]
[381924583,1756411844157,-23529.5415055,0.0002627,2]
[381924586,1756411844167,-414.85519093,0.0002627,2]
[381924588,1756411844178,-172.1321947,0.0002628,2]
[381924590,1756411844188,-150.0,0.00026285,4]
[381924592,1756411844200,-150.0,0.00026295,4]
[381924594,1756411844211,-150.0,0.00026327,4]
[381924596,1756411844222,-150.0,0.00026332,4]
[381924599,1756411844232,-150.0,0.00026339,4]
[381924601,1756411844243,-150.0,0.00026341,4]
[381924603,1756411844253,-23529.5415055,0.0002637,2]
[381924605,1756411844263,-16423.2412131,0.0002637,2]
[381924607,1756411844273,-861.0,0.0002638,2]
[381924609,1756411844283,-23529.5415055,0.0002638,2]
[381924611,1756411844293,-32846.4824263,0.0002638,2]
[381924613,1756411844303,-151.78,0.0002638,2]
[381924615,1756411844315,-344.91441206,0.0002639,2]
[381924618,1756411844326,-47059.083011,0.0002639,2]
[381924620,1756411844337,-49269.7236394,0.0002639,2]
[381924622,1756411844348,-23529.5415055,0.00026392,2]
[381924624,1756411844359,-32846.4824263,0.00026392,2]
[381924626,1756411844368,-203.58,0.00026395,2]
[381924628,1756411844379,-150.0,0.00026397,4]
[381924630,1756411844391,-150.0,0.00026397,4]
[381924633,1756411844403,-150.0,0.00026397,4]
[381924635,1756411844414,-150.0,0.00026397,4]
[381924637,1756411844425,-150.0,0.00026397,4]
[381924639,1756411844435,-160.0,0.000264,7]
[381924641,1756411844445,-97098.99409097,0.000264,7]
[381924643,1756411844455,-1256.0,0.00026402,2]
[381924645,1756411844465,-2032.0,0.00026402,2]
[381924647,1756411844476,-926.0,0.00026402,2]
[381924649,1756411844487,-3376.0,0.00026402,2]
[381924652,1756411844497,-1575.0,0.00026402,2]
[381924654,1756411844506,-664.136,0.00026402,2]
[381924656,1756411844517,-1298.0,0.00026402,2]
[381924658,1756411844526,-599.0,0.00026402,2]
[381924660,1756411844536,-4280.299,0.00026402,2]
[381924662,1756411844546,-6148.0,0.00026402,2]
[381924664,1756411844556,-21111.0,0.00026402,2]
[381924666,1756411844566,-718.0,0.00026402,2]
[381924668,1756411844580,-150.0,0.00026426,4]
[381924670,1756411844592,-150.0,0.00026436,4]
[381924673,1756411844603,-150.0,0.00026453,4]
[381924675,1756411844615,-150.0,0.0002651,4]
[381924677,1756411844626,-150.0,0.0002652,4]
[381924679,1756411844636,-150.0,0.00026533,4]
[381924681,1756411844646,-600.0,0.00026548,2]
[381924683,1756411844656,-150.0,0.0002655,4]
[381924685,1756411844666,-150.0,0.00026566,4]
[381924687,1756411844675,-150.0,0.00026584,4]
[381924690,1756411844685,-150.0,0.00026584,4]
[381924692,1756411844695,-280.72,0.00026589,2]
[381924694,1756411844704,-150.0,0.00026615,4]
[381924696,1756411844714,-150.0,0.00026622,4]
[381924698,1756411844724,-329.07,0.00026627,7]
[381924700,1756411844734,-150.0,0.0002663,4]
[381924702,1756411844744,-163.58,0.00026676,2]
[381924704,1756411844755,-150.0,0.00026678,4]
[381924706,1756411844765,-150.0,0.00026678,4]
[381924708,1756411844775,-150.0,0.00026678,4]
[381924710,1756411844785,-150.0,0.00026678,4]
[381924712,1756411844796,-150.0,0.00026678,4]
[381924713,1756411844806,-150.0,0.00026709,4]
[381924714,1756411844816,-150.0,0.00026726,4]
[381924715,1756411844826,-150.0,0.00026734,4]
[381924718,1756411844836,-150.0,0.00026772,4]
[381924720,1756411844846,-150.0,0.00026772,4]
[381924722,1756411844856,-150.0,0.0002679,4]
[381924724,1756411844866,-453.06572,0.000268,2]
[381924726,1756411844876,-151.78,0.00026803,2]
[381924728,1756411844886,-150.0,0.00026804,4]
[381924730,1756411844896,-150.0,0.00026806,4]
[381924732,1756411844906,-23529.5415055,0.00026813,2]
[381924734,1756411844916,-150.0,0.00026823,4]
[381924736,1756411844925,-16423.2412131,0.00026824,2]
[381924739,1756411844936,-150.0,0.00026847,4]
[381924741,1756411844945,-5609.74382654,0.00026894,6]
[381924743,1756411844956,-150.0,0.00026898,4]
[381924745,1756411844966,-150.0,0.00026903,4]
[381924747,1756411844975,-274.0,0.0002692,2]
[381924749,1756411844985,-150.0,0.0002692,4]
[381924751,1756411844995,-150.0,0.00026959,4]
[381924753,1756411845005,-150.0,0.00026959,4]
[381924755,1756411845015,-150.0,0.00026959,4]
[381924757,1756411845025,-150.0,0.00026959,4]
[381924760,1756411845037,-150.0,0.00026959,4]